bitfinex/quotes_ETHUSD_20251130
["timestamp","ask_amount","ask_price","bid_price","bid_amount"]
[1764545670963,0.4906,3008.8,3008.2,3.49181463]
[1764545671103,0.1998,3008.9,3008.4,0.32864066]
[1764545671104,0.212,3008.7,3008.4,0.32864066]
[1764545671284,3.32348173,3008.9,3008.6,0.2177]
[1764545671479,0.212,3008.8,3008.6,0.2177]
[1764545671685,3.32348173,3008.9,3008.3,0.405504]
[1764545671886,0.211,3008.8,3008.4,0.71837259]
[1764545672186,0.211,3008.9,3008.4,0.38973193]
[1764545672581,0.4108,3008.9,3008.3,0.73414466]
[1764545672785,0.4751,3008.8,3008.3,0.405504]
[1764545673025,3.79874588,3008.8,3008.3,0.405504]
[1764545673186,0.212,3008.8,3008.3,3.72963293]
[1764545673505,3.32551654,3008.9,3008.3,0.73414466]
[1764545673686,3.53751654,3008.9,3008.3,4.69855112]
[1764545674115,3.53751654,3008.9,3008.3,1.3744421]
[1764545674415,0.214,3008.9,3008.3,4.69856935]
[1764545674623,0.214,3008.9,3008.8,0.2177]
[1764545676129,4.02807369,3008.9,3008.3,4.15222605]
[1764545676303,3.53747369,3008.9,3008.4,0.46484667]
[1764545676628,0.002,3008.9,3008.5,0.32864066]
[1764545676797,0.213,3008.9,3008.5,0.54634066]
[1764545677195,0.002,3008.9,3008.8,0.2177]
[1764545677692,0.002,3008.9,3008.8,1.16954466]
[1764545677894,0.002,3008.9,3008.8,4.49312881]
[1764545678091,0.002,3008.9,3008.8,5.27481101]
[1764545678453,0.002,3008.9,3008.8,9.09545001]
[1764545678604,0.002,3008.9,3008.8,8.87775001]
[1764545678812,0.002,3008.9,3008.8,8.76680935]
[1764545679698,0.002,3008.9,3008.8,4.72847035]
[1764545680520,0.002,3008.9,3008.8,1.4048862]
[1764545680720,0.002,3008.9,3008.8,4.72847035]
[1764545681249,0.002,3008.9,3008.8,1.4048862]
[1764545681598,0.002,3008.9,3008.8,0.623204]
[1764545682112,0.4926,3008.9,3008.6,0.405504]
[1764545682314,0.4926,3008.9,3008.5,0.72559411]
[1764545682315,0.4906,3008.8,3008.5,0.72559411]
[1764545682536,0.4906,3008.6,3008.2,3.49182774]
[1764545682697,0.4751,3008.8,3008.3,0.34918277]
[1764545682901,0.2018,3008.9,3008.4,0.405504]
[1764545683100,0.211,3008.8,3008.2,0.1676]
[1764545683334,0.211,3008.8,3008.0,3.32540893]
[1764545683542,0.211,3008.8,3008.2,0.405504]
[1764545683836,0.6861,3008.8,3008.2,0.405504]
[1764545684044,3.32369461,3008.7,3008.2,0.72559411]
[1764545684207,4.00972668,3008.8,3008.3,0.405504]
[1764545684407,3.53462668,3008.8,3008.3,0.93430578]
[1764545684613,3.53460913,3008.8,3008.3,0.93430578]
[1764545684819,4.00970913,3008.8,3008.3,0.93430578]
[1764545685978,3.79889655,3008.7,3008.2,1.13109811]
[1764545686315,3.79889655,3008.7,3008.2,0.405504]
[1764545686519,3.79889655,3008.7,3008.2,1.13109811]
[1764545687236,3.79889655,3008.7,3008.2,0.405504]
[1764545687532,3.79889655,3008.7,3008.1,0.1676]
[1764545687533,0.4751,3008.6,3008.1,0.1676]
[1764545687733,0.4751,3008.6,3008.1,0.405504]
[1764545687941,3.7989497,3008.6,3008.1,0.88403164]
[1764545688115,3.7989497,3008.6,3008.1,4.20838367]
[1764545688436,3.7989497,3008.6,3008.1,0.405504]
[1764545688437,0.4906,3008.2,3008.1,0.405504]
[1764545688640,0.7016,3008.2,3008.0,0.001]
[1764545688824,0.4906,3008.1,3008.0,0.001]
[1764545689729,0.9657,3008.1,3008.0,0.001]
[1764545690137,1.1767,3008.1,3008.0,0.001]
[1764545690337,4.50105756,3008.1,3008.0,0.001]
[1764545690956,1.1767,3008.1,3008.0,0.001]
[1764545691655,4.50105756,3008.1,3008.0,0.001]
[1764545691952,1.1767,3008.1,3008.0,0.001]
[1764545692950,4.50105756,3008.1,3008.0,0.001]
[1764545693153,1.1767,3008.1,3008.0,0.001]
[1764545693520,0.7016,3008.1,3008.0,0.001]
[1764545695158,0.211,3008.1,3008.0,0.001]
[1764545695656,0.7017,3008.1,3008.0,0.001]
[1764545696656,1.1814,3008.1,3008.0,0.001]
[1764545697256,0.7017,3008.1,3008.0,0.001]
[1764545697459,0.211,3008.1,3008.0,0.001]
[1764545697667,0.211,3008.1,3008.0,0.2187]
[1764545697826,3.80355607,3008.6,3008.0,0.2187]
[1764545698025,0.211,3008.5,3008.0,0.2187]
[1764545698334,0.6907,3008.5,3008.0,0.2187]
[1764545698746,0.4797,3008.4,3008.0,0.2187]
[1764545698943,0.211,3008.4,3008.1,0.1676]
[1764545699552,3.53502912,3008.4,3008.0,0.001]
[1764545699751,4.01472912,3008.4,3008.0,0.001]
[1764545700460,0.4797,3008.3,3008.0,0.001]
[1764545700884,0.4907,3008.1,3008.0,0.001]
[1764545701374,4.72422339,3008.1,3008.0,0.001]
[1764545701557,0.3288771,3008.0,3007.7,0.001]
[1764545701752,0.5867,3007.8,3007.7,0.001]
[1764545702264,1.3952771,3007.8,3007.7,0.001]
[1764545703162,4.71996624,3007.8,3007.7,0.001]
[1764545703365,5.61807978,3007.8,3007.7,0.001]
[1764545703666,5.82907978,3007.8,3007.7,0.001]
[1764545704443,5.61807978,3007.8,3007.7,0.001]
[1764545704748,5.82907978,3007.8,3007.7,0.001]
[1764545705259,5.50020268,3007.8,3007.7,0.001]
[1764545705465,5.28920268,3007.8,3007.7,0.001]
[1764545705661,5.50020268,3007.8,3007.7,0.001]
[1764545705965,5.82907978,3007.8,3007.7,0.001]
[1764545708541,6.22579679,3007.8,3007.7,0.001]
[1764545708740,6.55467389,3007.8,3007.7,0.001]
[1764545709857,6.01479679,3007.8,3007.7,0.001]
[1764545710045,6.55467389,3007.8,3007.7,0.001]
[1764545710445,6.5962325,3007.8,3007.7,0.001]
[1764545720467,6.5962325,3007.8,3007.3,0.001]
[1764545720468,1.95067521,3007.7,3007.3,0.001]
[1764545720705,0.3288771,3007.1,3007.0,0.001]
[1764545721051,1.07214538,3007.1,3007.0,0.001]
[1764545721206,1.55184538,3007.1,3007.0,0.001]
[1764545722183,4.66630845,3007.1,3007.0,0.001]
[1764545722368,5.74903392,3007.1,3007.0,0.001]
[1764545725596,6.47462803,3007.1,3007.0,0.001]
[1764545725890,6.88013203,3007.1,3007.0,0.001]
[1764545726107,6.83856375,3007.1,3007.0,0.001]
[1764545726586,6.43305975,3007.1,3007.0,0.001]
[1764545726788,5.93475093,3007.1,3007.0,0.001]
[1764545727092,6.47462803,3007.1,3007.0,0.001]
[1764545728118,6.14575093,3007.1,3007.0,0.001]
[1764545728310,6.47462803,3007.1,3007.0,0.001]
[1764545730079,6.88013203,3007.1,3007.0,0.00011274]
[1764545730284,6.83856375,3007.1,3007.0,0.00011274]
[1764545730480,13.29865537,3007.1,3007.0,0.00011274]
[1764545731403,1.45997521,3006.7,3006.6,0.001]
[1764545731611,5.43459483,3006.7,3006.6,0.001]
[1764545731808,5.93239483,3006.7,3006.6,0.001]
[1764545732008,6.0656653,3006.7,3006.6,0.001]
[1764545732706,9.39157077,3006.7,3006.6,0.001]
[1764545732910,11.14404646,3006.7,3006.6,0.001]
[1764545734296,7.91400065,3006.7,3006.6,0.001]
[1764545734894,11.14404646,3006.7,3006.6,0.001]
[1764545736595,10.93304646,3006.7,3006.6,0.001]
[1764545736796,11.14404646,3006.7,3006.6,0.001]
[1764545738042,10.93304646,3006.7,3006.6,0.001]
[1764545738332,11.14404646,3006.7,3006.6,0.001]
[1764545738526,10.93304646,3006.7,3006.6,0.001]
[1764545738752,11.14404646,3006.7,3006.6,0.001]
[1764545740028,11.24404646,3006.7,3006.6,0.001]
[1764545740233,11.24404646,3006.7,3006.6,0.0001128]
[1764545740649,11.14404646,3006.7,3006.6,0.0001128]
[1764545742453,14.77531382,3006.7,3006.6,0.0001128]
[1764545742954,14.87531382,3006.7,3006.6,0.0001128]
[1764545744739,14.77531382,3006.7,3006.6,0.0001128]
[1764545745753,14.77531382,3006.7,3006.2,0.00032669]
[1764545745754,18.00535963,3006.7,3006.2,0.00032669]
[1764545746052,1.13109811,3006.2,3005.5,0.74431818]
[1764545746285,1.05447121,3005.9,3005.5,0.74431818]
[1764545746490,1.26547121,3005.9,3005.5,0.96401818]
[1764545746664,1.30705609,3005.9,3005.5,0.74431818]
[1764545747056,4.63384673,3005.9,3005.5,0.74431818]
[1764545747457,4.30496963,3005.9,3005.8,0.2227]
[1764545747656,4.63384673,3005.9,3005.8,0.2227]
[1764545748359,4.63384673,3005.9,3005.8,0.2237]
[1764545748558,4.42284673,3005.9,3005.8,0.2237]
[1764545748787,6.22380387,3005.9,3005.8,0.004]
[1764545749091,5.73180387,3005.9,3005.8,0.2237]
[1764545750991,5.73180387,3005.9,3005.8,0.004]
[1764545750992,5.12584673,3005.9,3005.8,0.004]
[1764545751689,5.12584673,3005.9,3005.8,0.2237]
[1764545751690,4.09396963,3005.9,3005.8,0.2237]
[1764545751899,4.63384673,3005.9,3005.8,0.2237]
[1764545752670,5.12584673,3005.9,3005.8,0.004]
[1764545752963,5.42402677,3005.9,3005.8,0.2237]
[1764545753164,4.63384673,3005.9,3005.8,0.2237]
[1764545754170,4.09396963,3005.9,3005.8,0.2237]
[1764545754369,4.42284673,3005.9,3005.8,0.2237]
[1764545754572,4.63384673,3005.9,3005.8,0.2237]
[1764545754767,8.32199254,3005.9,3005.8,0.004]
[1764545754970,8.9871748,3005.9,3005.8,0.004]
[1764545755172,0.3288771,3006.3,3005.8,0.4434]
[1764545755517,4.05194211,3006.3,3006.2,0.2718]
[1764545755683,3.8662251,3006.3,3006.2,0.2718]
[1764545755869,3.537348,3006.3,3006.2,0.2718]
[1764545756068,3.8662251,3006.3,3006.2,0.2718]
[1764545756575,3.326348,3006.3,3006.2,0.2718]
[1764545756890,3.8662251,3006.3,3006.2,0.4915]
[1764545757099,3.8662251,3006.3,3006.2,0.2718]
[1764545757296,3.6552251,3006.3,3006.2,0.2718]
[1764545757471,0.3288771,3005.9,3005.8,0.2237]
[1764545757670,3.86666774,3005.9,3005.8,0.2237]
[1764545757872,3.86666774,3005.9,3005.8,0.4434]
[1764545758297,3.53779064,3005.9,3005.8,0.4434]
[1764545759720,0.211,3005.9,3005.8,0.4434]
[1764545760103,6.65247472,3006.4,3005.8,0.4434]
[1764545760270,0.25257935,3006.3,3005.9,0.2197]
[1764545760716,0.25257935,3006.3,3006.2,0.2718]
[1764545761069,0.37045645,3006.3,3006.2,0.2718]
[1764545761302,0.58145645,3006.3,3006.2,0.4915]
[1764545761728,3.57892735,3006.3,3006.2,0.4915]
[1764545762543,4.30452146,3006.3,3006.2,0.2718]
[1764545762699,0.72559411,3006.2,3005.8,0.004]
[1764545762904,0.72559411,3006.2,3006.1,0.2718]
[1764545763100,0.211,3006.2,3006.1,0.2718]
[1764545763321,0.211,3006.2,3006.1,0.4915]
[1764545763806,3.32579486,3006.8,3006.1,0.4915]
[1764545764011,0.97816792,3006.7,3006.2,0.2197]
[1764545764235,1.30704502,3006.7,3006.2,0.2197]
[1764545764544,1.30704502,3006.7,3006.6,0.2197]
[1764545764956,0.97816792,3006.7,3006.6,0.2197]
[1764545765535,0.76716792,3006.7,3006.6,0.2197]
[1764545765735,0.04157381,3006.7,3006.6,0.4394]
[1764545766036,0.3288771,3006.6,3006.1,0.2718]
[1764545766241,0.04157658,3006.5,3006.1,0.2718]
[1764545766461,0.76716792,3006.7,3006.4,0.2197]
[1764545766666,0.76716792,3006.7,3006.1,0.2718]
[1764545766667,0.211,3006.6,3006.1,0.2718]
[1764545766964,0.72559411,3006.5,3006.1,0.2718]
[1764545767171,0.72559411,3006.3,3006.1,0.2718]
[1764545767370,0.211,3006.2,3006.1,0.2718]
[1764545767871,3.53745865,3006.2,3006.1,0.4915]
[1764545768767,3.32645865,3006.2,3006.1,0.4915]
[1764545768985,0.211,3006.2,3006.1,0.4915]
[1764545769499,0.04357381,3006.7,3006.1,0.4915]
[1764545769500,0.002,3006.7,3006.2,0.405504]
[1764545769641,0.002,3006.7,3006.6,0.2197]
[1764545769950,0.002,3006.7,3006.6,0.4394]
[1764545770343,0.002,3006.7,3006.6,4.17092009]
[1764545770952,0.002,3006.7,3006.6,0.844904]
[1764545771369,0.002,3006.7,3006.6,0.625204]
[1764545771575,0.002,3006.7,3006.6,0.4394]
[1764545772680,0.002,3006.7,3006.6,0.8159631]
[1764545772979,0.002,3006.7,3006.6,0.4394]
[1764545774971,0.04357381,3006.7,3006.1,0.0521]
[1764545775148,0.002,3006.7,3006.6,0.2197]
[1764545775349,0.04357381,3006.7,3006.6,0.2197]
[1764545776385,3.36947928,3006.7,3006.6,0.2197]
[1764545777471,3.58047928,3006.7,3006.6,0.2197]
[1764545778054,6.90638475,3006.7,3006.1,0.2718]
[1764545778259,3.53890547,3006.7,3006.6,0.2197]
[1764545778470,3.58047928,3006.7,3006.6,0.2197]
[1764545778871,6.90638475,3006.7,3006.1,0.0521]
[1764545779162,6.86481094,3006.7,3006.1,0.2718]
[1764545780364,3.32612672,3006.5,3006.1,0.2718]
[1764545780567,6.65225344,3006.5,3006.1,0.0521]
[1764545780772,6.98113054,3006.5,3006.1,0.0521]
[1764545781387,6.98113054,3006.5,3005.8,0.004]
[1764545781388,8.5627452,3006.5,3005.8,0.004]
[1764545781561,0.3288771,3006.4,3005.8,0.004]
[1764545781890,0.3288771,3006.4,3005.9,0.2197]
[1764545782091,0.3288771,3006.4,3006.3,0.2197]
[1764545782461,3.65511446,3006.4,3006.3,0.2197]
[1764545782662,3.32623736,3006.4,3006.3,0.2197]
[1764545783746,7.13847472,3006.4,3005.8,0.004]
[1764545784484,7.13847472,3006.4,3005.8,0.2237]
[1764545785086,6.65247472,3006.4,3005.8,0.2237]
[1764545785489,3.32623736,3006.4,3006.3,0.2718]
[1764545785672,0.002,3006.7,3006.3,0.2718]
[1764545785871,3.53702169,3006.6,3006.3,0.2718]
[1764545786077,6.86304338,3006.6,3006.3,0.0521]
[1764545786276,6.86304338,3006.6,3006.1,0.0521]
[1764545786599,6.65247472,3006.4,3006.1,0.0521]
[1764545786798,3.32613566,3006.5,3006.1,0.0521]
[1764545787001,3.32613566,3006.5,3006.4,0.2197]
[1764545787298,3.36771224,3006.5,3006.4,0.2197]
[1764545788002,3.86593137,3006.6,3006.4,0.2197]
[1764545788183,3.53705427,3006.6,3006.5,0.2197]
[1764545788804,3.32795501,3006.7,3006.5,0.4394]
[1764545788991,0.211,3006.6,3006.5,0.2197]
[1764545789395,0.211,3006.6,3006.5,0.4394]
[1764545789591,0.002,3006.7,3006.5,0.4394]
[1764545789901,3.32791809,3006.7,3006.6,0.2197]
[1764545790101,3.53891809,3006.7,3006.6,0.2197]
[1764545792975,3.53891809,3006.7,3006.6,0.2197]
[1764545793170,7.87400999,3006.7,3006.1,0.0521]
[1764545793400,6.86483618,3006.7,3006.1,0.2718]
[1764545793782,6.86483618,3006.7,3006.1,0.0521]
[1764545794514,6.86483618,3006.7,3006.1,0.2718]
[1764545795511,0.0415752,3006.6,3006.1,0.2718]
[1764545795703,0.0415752,3006.6,3006.1,0.0521]
[1764545796172,6.86483618,3006.7,3006.1,0.2718]
[1764545796372,6.65383979,3006.7,3006.1,0.45250552]
[1764545796577,0.2525752,3006.6,3006.1,0.45250552]
[1764545796789,0.2525752,3006.6,3006.1,0.0521]
[1764545797506,3.32612672,3006.5,3006.1,0.0521]
[1764545797806,3.32612672,3006.5,3006.1,0.2718]
[1764545797979,3.32612672,3006.5,3006.4,0.2197]
[1764545799388,0.2525752,3006.6,3006.4,0.2197]
[1764545799389,3.32604211,3006.6,3006.4,0.2197]
[1764545799677,3.53712672,3006.5,3006.1,0.0521]
[1764545799878,3.53712672,3006.5,3006.2,0.2197]
[1764545800212,3.53712672,3006.5,3006.4,0.2197]
[1764545800413,0.211,3006.5,3006.4,0.2197]
[1764545800708,4.01532672,3006.5,3006.1,0.0521]
[1764545800906,3.53712672,3006.5,3006.1,0.2718]
[1764545801214,3.53712672,3006.5,3006.4,0.2197]
[1764545802113,6.86325344,3006.5,3006.1,0.0521]
[1764545802901,6.86325344,3006.5,3005.8,0.004]
[1764545802902,0.4894,3006.4,3005.8,0.004]
[1764545803229,6.86325344,3006.5,3005.8,0.004]
[1764545803543,6.86325344,3006.5,3005.8,0.409504]
[1764545803742,7.35265344,3006.5,3005.8,0.004]
[1764545804138,7.35265344,3006.5,3005.8,0.2237]
[1764545804345,7.35265344,3006.5,3006.0,0.001]
[1764545804994,3.53712672,3006.5,3006.1,0.0521]
[1764545805223,3.5787033,3006.5,3006.1,0.0521]
[1764545805634,3.5787033,3006.5,3006.1,0.2718]
[1764545805843,3.53712672,3006.5,3006.1,0.2718]
[1764545806146,3.53712672,3006.5,3006.4,0.2197]
[1764545806437,8.0849018,3006.5,3006.0,0.001]
[1764545806598,7.35265344,3006.5,3006.0,0.001]
[1764545806802,7.35265344,3006.5,3006.1,0.0521]
[1764545806995,0.211,3006.4,3006.1,0.0521]
[1764545807936,0.211,3006.4,3006.3,0.2197]
[1764545808104,0.211,3006.4,3006.1,0.0521]
[1764545808300,0.211,3006.3,3006.1,0.0521]
[1764545808748,0.211,3006.3,3006.2,0.2197]
[1764545809441,0.211,3006.3,3006.0,0.001]
[1764545809442,1.59644766,3006.3,3006.0,0.001]
[1764545809728,3.70727685,3006.1,3006.0,0.001]
[1764545809932,0.211,3006.1,3006.0,0.001]
[1764545810522,3.5375693,3006.1,3006.0,0.001]
[1764545812507,3.32645865,3006.2,3006.0,0.001]
[1764545812713,0.211,3006.1,3006.0,0.001]
[1764545814738,3.5375693,3006.1,3006.0,0.001]
[1764545815543,4.5148693,3006.1,3006.0,0.001]
[1764545815844,9.25367306,3006.1,3006.0,0.001]
[1764545816044,9.58255016,3006.1,3006.0,0.001]
[1764545816229,9.71581219,3006.1,3006.0,0.001]
[1764545816810,0.3288771,3005.9,3005.8,0.004]
[1764545817015,0.8120771,3005.9,3005.8,0.004]
[1764545817234,2.61041525,3005.9,3005.8,0.004]
[1764545819053,5.93720589,3005.9,3005.8,0.004]
[1764545819547,5.97879077,3005.9,3005.8,0.004]
[1764545820648,5.97879077,3005.9,3005.7,0.001]
[1764545820649,0.3288771,3005.8,3005.7,0.001]
[1764545820825,6.26396544,3005.8,3005.7,0.001]
[1764545821025,9.59086676,3005.8,3005.7,0.00011301]
[1764545821525,0.4832,3005.4,3004.1,0.1702352]
[1764545821730,4.15715395,3004.2,3004.1,0.1702352]
[1764545821938,4.28354806,3003.4,3003.3,0.76394628]
[1764545822124,4.97774806,3003.4,3003.3,0.76394628]
[1764545822344,0.211,3003.4,3003.3,0.98464628]
[1764545822518,0.211,3003.4,3003.3,0.76394628]
[1764545822851,4.64887096,3003.4,3003.3,0.76394628]
[1764545823154,8.93741789,3003.4,3003.3,0.76394628]
[1764545823326,7.60720676,3003.4,3002.6,0.4813]
[1764545823655,3.22907685,3002.9,3002.1,0.2058]
[1764545823854,3.22907685,3003.2,3002.1,0.6871]
[1764545824028,0.211,3003.1,3002.8,0.4721]
[1764545824354,0.211,3003.1,3002.2,0.4813]
[1764545824742,0.72559411,3003.3,3002.2,0.4813]
[1764545825057,6.66022844,3002.9,3002.2,0.4813]
[1764545825257,3.54104067,3003.0,3002.2,0.4813]
[1764545825462,6.87108134,3003.0,3002.2,0.4813]
[1764545825779,6.87108134,3003.0,3002.1,0.2058]
[1764545825780,0.90979411,3002.9,3002.1,0.2058]
[1764545826060,0.90979411,3002.9,3002.1,0.01]
[1764545826061,0.0048,3002.2,3002.1,0.01]
[1764545826223,0.4675,3001.2,2998.9,0.80320248]
[1764545826428,0.3288771,3000.5,2999.3,0.4813]
[1764545826626,0.212,3000.4,2999.4,0.436116]
[1764545826935,1.00142034,3000.4,2999.4,7.94198913]
[1764545827148,0.213,3000.3,2999.5,0.4813]
[1764545827335,0.3288771,3000.1,2999.5,0.4813]
[1764545827531,0.3288771,2999.9,2999.1,0.1271]
[1764545827732,0.213,2999.8,2999.2,0.4813]
[1764545828256,0.3288771,3000.0,2999.2,0.4813]
[1764545828424,0.213,3000.2,2999.3,0.4813]
[1764545828783,0.5418771,3000.2,2999.3,0.4813]
[1764545829360,0.5418771,3000.2,2998.9,0.80320248]
[1764545829361,0.4047,2999.4,2998.9,0.80320248]
[1764545829562,0.4047,2999.4,2997.3,0.1958]
[1764545829563,0.4007,2999.0,2997.3,0.1958]
[1764545829763,0.213,2998.9,2997.5,6.380078]
[1764545829962,4.71371594,3000.1,2997.6,0.6861378]
[1764545829963,0.4941,2999.3,2997.6,0.6861378]
[1764545830171,0.213,2999.7,2998.8,0.5992]
[1764545830463,0.213,2999.6,2998.8,0.6084]
[1764545830681,0.5418771,2999.6,2998.8,0.6084]
[1764545830875,0.72559411,3000.5,2999.5,0.4721]
[1764545830876,0.213,2999.8,2999.5,0.4721]
[1764545831332,4.23292972,3000.4,2999.0,0.4813]
[1764545831333,0.3288771,3000.0,2999.0,0.4813]
[1764545831531,0.213,2999.9,2998.9,0.4813]
[1764545831742,0.3288771,3000.0,2998.9,0.4813]
[1764545832049,0.9477111,3000.4,2998.9,1.20689411]
[1764545832245,0.5418771,3000.4,2999.1,0.32864066]
[1764545832446,0.5418771,3000.4,2999.0,2.0534673]
[1764545832447,0.5418771,3000.4,2999.0,1.6479633]
[1764545832656,0.4941,3000.8,2999.3,0.405504]
[1764545832859,0.3288771,3001.0,2999.8,0.405504]
[1764545833045,0.3288771,3001.0,3000.0,0.405504]
[1764545833376,0.213,3001.1,3000.9,0.6679]
[1764545833585,0.213,3001.1,3001.0,0.4721]
[1764545833740,0.3288771,3001.4,3001.0,0.4721]
[1764545834376,0.7335771,3001.1,3000.3,0.1958]
[1764545834541,0.4941,3001.3,3000.3,0.1958]
[1764545834542,0.3288771,3000.8,3000.3,0.1958]
[1764545834739,0.218,3001.0,3000.3,0.1958]
[1764545834957,0.214,3001.0,3000.3,0.1958]
[1764545835266,3.50883363,3000.9,3000.3,0.1958]
[1764545835444,0.214,3001.0,3000.3,0.1958]
[1764545835650,0.214,3001.0,3000.3,0.6771]
[1764545836035,0.04165139,3001.1,3000.4,0.4813]
[1764545836236,0.214,3001.0,3000.4,0.4813]
[1764545836453,0.214,3001.0,3000.5,0.40100439]
[1764545836639,0.214,3001.0,3000.9,0.4721]
[1764545837251,4.33242667,3001.7,3000.9,0.9534]
[1764545837252,1.00087242,3001.7,3000.9,0.9534]
[1764545837578,0.214,3001.9,3001.2,0.4721]
[1764545837873,0.04164168,3001.8,3001.3,0.1958]
[1764545838075,0.0416389,3002.0,3001.3,0.6771]
[1764545838273,0.25563613,3002.2,3001.9,0.4721]
[1764545838437,0.214,3002.2,3001.9,0.4721]
[1764545838864,0.04163752,3002.1,3001.5,0.4813]
[1764545839255,0.04163752,3002.1,3001.5,3.81288241]
[1764545839461,0.04163752,3002.1,3001.5,0.4813]
[1764545839869,0.04163752,3002.1,3001.5,3.81295331]
[1764545840644,0.1765,3003.3,3002.0,0.4721]
[1764545840843,0.002,3002.9,3002.5,0.1958]
[1764545841294,0.002,3002.9,3002.8,0.4721]
[1764545841469,0.002,3002.9,3002.5,0.6771]
[1764545841669,0.4832,3002.6,3001.8,0.4813]
[1764545841849,0.3288771,3002.4,3001.5,0.4813]
[1764545842039,0.04163474,3002.3,3001.5,0.4813]
[1764545842264,0.04163474,3002.3,3001.3,3.52759863]
[1764545842265,0.3288771,3002.1,3001.3,0.1958]
[1764545842576,0.25563474,3002.3,3001.3,0.1958]
[1764545842577,0.04163613,3002.2,3001.4,0.4914]
[1764545842780,0.04163752,3002.1,3001.4,0.4914]
[1764545843640,0.04163613,3002.2,3001.5,3.33166749]
[1764545843863,0.25563474,3002.3,3001.5,4.06674161]
[1764545844073,0.25563474,3002.3,3001.6,0.4943]
[1764545844276,3.33039455,3002.7,3001.6,0.4943]
[1764545844486,0.98122469,3002.6,3001.3,0.1958]
[1764545844686,0.3288771,3002.1,3001.3,0.1958]
[1764545844867,0.0416389,3002.0,3001.4,0.4943]
[1764545845175,0.3288771,3002.4,3001.3,0.1958]
[1764545845379,0.3288771,3002.1,3001.3,0.1958]
[1764545845683,3.58681035,3002.0,3001.3,0.6901]
[1764545846184,6.9179818,3002.0,3001.3,0.6901]
[1764545846470,6.8763429,3002.0,3001.3,0.6901]
[1764545846639,0.1902,3001.9,3001.3,0.1958]
[1764545846845,0.04164168,3001.8,3001.3,0.6901]
[1764545847065,4.23696963,3002.0,3001.3,0.6901]
[1764545847066,0.04164029,3001.9,3001.3,0.6901]
[1764545847373,0.04164168,3001.8,3001.3,0.6901]
[1764545847893,0.04164168,3001.8,3001.4,0.4943]
[1764545848382,3.37298397,3001.8,3001.4,0.4943]
[1764545848583,0.04164168,3001.8,3001.4,0.4943]
[1764545850099,0.04164168,3001.8,3001.3,0.1958]
[1764545850100,3.37299713,3001.8,3001.3,0.1958]
[1764545850388,4.06480928,3001.8,3001.3,0.1958]
[1764545850593,4.06480928,3001.8,3001.3,0.6901]
[1764545851169,4.06480928,3001.8,3001.3,0.1958]
[1764545851369,6.70432458,3001.8,3001.3,0.6901]
[1764545851600,3.33134145,3001.8,3001.3,0.6901]
[1764545851961,0.04164029,3001.9,3001.3,3.52767162]
[1764545852168,0.04164029,3001.9,3001.4,0.4943]
[1764545852368,0.04164029,3001.9,3001.4,3.8260666]
[1764545852685,0.04164029,3001.9,3001.4,0.4943]
[1764545852882,0.4929,3002.4,3001.4,0.4943]
[1764545852883,0.04163474,3002.3,3001.8,0.4844]
[1764545853087,0.04163474,3002.3,3001.5,0.4943]
[1764545853088,0.04163474,3002.3,3001.9,0.4844]
[1764545853296,0.214,3002.2,3001.9,0.4844]
[1764545853601,0.04163752,3002.1,3001.9,0.4844]
[1764545853969,3.33044404,3002.7,3002.0,0.4943]
[1764545854271,3.33044404,3002.7,3001.3,0.4098]
[1764545854272,6.66111572,3002.5,3001.5,0.4943]
[1764545854597,0.3288771,3002.3,3001.5,0.4943]
[1764545854901,0.04163613,3002.2,3001.5,3.8259644]
[1764545855962,0.04163613,3002.2,3001.6,0.4943]
[1764545856162,0.25563197,3002.5,3002.1,0.6077]
[1764545856592,3.58621157,3002.5,3002.1,0.6077]
[1764545857008,6.91679117,3002.5,3002.1,0.6077]
[1764545857221,3.5445796,3002.5,3002.1,0.6077]
[1764545857393,3.58621157,3002.5,3002.1,0.6077]
[1764545857573,0.04163335,3002.4,3002.1,0.6077]
[1764545857774,0.04163335,3002.4,3002.1,0.4844]
[1764545858070,0.04163335,3002.4,3001.9,0.4943]
[1764545858404,3.37239729,3002.4,3001.9,0.4943]
[1764545858573,3.37231808,3002.4,3001.9,0.4943]
[1764545859502,3.37231808,3002.4,3001.3,0.4098]
[1764545859503,0.4,3002.0,3001.3,0.1958]
[1764545859704,0.4929,3002.3,3001.3,0.1958]
[1764545859705,0.004,3001.7,3001.3,0.1958]
[1764545860273,3.77713498,3001.9,3001.3,0.6901]
[1764545860679,7.10842967,3001.9,3001.3,0.6901]
[1764545860883,3.73545686,3001.9,3001.3,4.0219347]
[1764545861201,7.10835401,3001.9,3001.3,0.1958]
[1764545861401,0.4,3001.4,3000.3,0.6901]
[1764545861705,0.3337771,3001.2,3000.3,0.6901]
[1764545861873,0.3337771,3001.2,3000.3,4.02308998]
[1764545862206,0.0049,3001.2,3000.4,0.4943]
[1764545862405,3.33692233,3001.2,3000.5,3.33277787]
[1764545862577,0.0049,3001.2,3000.5,3.33277787]
[1764545862783,3.33690682,3001.2,3000.5,3.82707787]
[1764545863383,3.33690682,3001.2,3000.5,0.4943]
[1764545864275,6.66891364,3001.2,3000.4,4.06847376]
[1764545864579,3.33690682,3001.2,3000.4,4.06847376]
[1764545864783,3.66578392,3001.2,3000.4,4.06847376]
[1764545865282,3.33690682,3001.2,3000.4,4.56277376]
[1764545865472,6.66891364,3001.2,3000.4,4.56277376]
[1764545865675,7.899395,3001.2,3000.4,0.4943]
[1764545866322,7.899395,3001.2,3000.4,3.82715458]
[1764545866708,4.56738818,3001.2,3000.4,3.82715458]
[1764545867206,0.3288771,3000.7,3000.4,3.33285458]
[1764545867504,0.4929,3001.1,3000.4,3.33285458]
[1764545867722,1.30423065,3001.1,3000.6,0.4844]
[1764545868580,4.6363769,3001.1,3000.6,0.4844]
[1764545868889,0.3288771,3001.0,3000.3,0.6901]